[Event "Bangabandhu Premier Div League 2023-24"]
[Site "Dhaka"]
[Date "2024.02.06"]
[Round "6.9"]
[White "Ikramul, Haq Siam"]
[Black "Rathanvel, V S"]
[Result "0-1"]
[ECO "D00"]
[WhiteElo "2036"]
[BlackElo "2474"]
[Annotator "TA"]
[PlyCount "110"]
[EventDate "2024.02.01"]
[EventCountry "BAN"]
[SourceTitle "playchess.com"]
[Source "ChessBase"]
[SourceQuality "1"]
[TimeControl "40/5400+30:1800+30"]

{[%evp 9,109,-4,8,-2,-1,-9,-5,0,0,0,0,0,-19,0,0,0,0,-103,-70,-70,-63,-72,-60,-66,-26,-54,-63,-81,-55,-79,-54,-58,-60,-56,-54,-57,-58,-50,-45,-44,-48,-39,-37,-39,-28,-47,-27,-27,-27,-28,-28,-28,-28,-59,-45,-72,-61,-67,-68,-85,-56,-97,-63,-90,-89,-95,-87,-111,-100,-169,-76,-116,-118,-192,-181,-211,-185,-213,-213,-213,-213,-213,-213,-29947,-29949,-29960,-29960,-29959,-29962,-29959,-29948,-29979,-29980,-29982,-29983,-29996,-29997,-29997,-29997,-29998,-29999,-29999]} 1. d4 {[%emt 0:01:50]} Nf6 {[%emt 0:00:22]} 2. Bg5 {[%emt 0:00:40]} d5 {[%emt 0:00:11]} 3. Bxf6 {[%emt 0:00:12]} gxf6 {[%emt 0:00:10]} 4. e3 {[%emt 0:00:03]} c5 {[%emt 0:00:25]} 5. dxc5 {[%emt 0:00:07]} Nc6 {[%emt 0:00:23]} 6. Nf3 {[%emt 0:00:43]} e5 {[%emt 0:00:30][%cal Oc8e6]} 7. c4 {[%emt 0:00:49]} d4 {[%emt 0:00:09]} 8. exd4 {[%emt 0:01:20] The position is equal.} e4 {[%emt 0:00:14]} 9. Nfd2 {[%emt 0:06:03] Hoping for d5.} (9. Qe2 Qe7 (9... Nxd4 $2 10. Qxe4+ Ne6 11. Nc3 $18) 10. Ng1 Nxd4 $17) 9... Qxd4 {[%emt 0:00:09]} 10. Nc3 {[%emt 0:00:15]} Qe5 {[%emt 0:00:02]} (10... Qxc5 $6 11. Ndxe4 (11. Ncxe4 Qe5 $11) 11... Qe5 12. Qd5 $16) 11. Be2 {[%emt 0:08:20]} (11. Ndxe4 f5 12. f4 Qe6 $17 (12... Qxf4 $2 13. Nf6+ Ke7 14. Nfd5+ Ke8 15. Nxf4 $18)) 11... f5 {[%emt 1:33:25][%cal Oc8e6]} 12. Nb3 {[%emt 0:11:13]} Be6 $36 {[%emt 0:00:00][%mdl 2048] Black is more active.} 13. a3 {[%emt 1:05:25] Against a5} (13. O-O $11 {remains equal.}) 13... Rd8 {[%emt 0:00:00]} 14. Qc2 {[%emt 0:00:00]} Bxc5 {[%emt 0:00:00] Black is much more active.} 15. Nxc5 {[%emt 0:00:00]} Qxc5 {[%emt 0:00:00]} 16. O-O {[%emt 0:01:30]} O-O {[%emt 0:00:00][%cal Oc6d4]} (16... Bxc4 17. Nxe4 fxe4 18. Bxc4 $16 (18. Qxc4 Qxc4 19. Bxc4 O-O $11)) 17. Qc1 {[%emt 0:00:30] Qg5+ would now be deadly.} Qe5 {[%emt 0:00:00]} 18. Qe3 {[%emt 0:00:00]} Nd4 {[%emt 0:00:00] Strongly threatening ...f4.} 19. f3 {[%emt 0:00:00]} Nxe2+ {[%emt 0:00:00]} 20. Qxe2 {[%emt 0:00:00][%cal Rf3e4]} Qd4+ {[%emt 0:00:00]} 21. Qf2 {[%emt 0:02:00]} Bxc4 {[%emt 0:00:00]} (21... Qxc4 22. Qxa7 exf3 23. Rxf3 $11) 22. Rfd1 {[%emt 0:00:00] White is weak on the light squares} Qxf2+ {[%emt 0:00:00]} 23. Kxf2 {[%emt 0:01:00]} Bb3 {[%emt 0:06:00]} 24. Rxd8 {[%emt 0:00:00]} Rxd8 $15 {[%emt 0:00:00][%mdl 4096] Endgame. KRB-KRN} 25. Re1 $1 {[%emt 0:00:00]} exf3 {[%emt 0:00:00]} 26. Kxf3 {[%emt 0:00:00]} Be6 {[%emt 0:00:00]} 27. g3 {[%emt 0:02:00]} Kg7 {[%emt 0:00:00]} 28. Rd1 {[%emt 0:00:30]} Rc8 {[%emt 0:00:00]} 29. Rd4 {[%emt 0:00:30]} Rc5 {[%emt 0:00:00]} 30. Rb4 {[%emt 0:00:00]} b6 {[%emt 0:03:30]} 31. Rb5 {[%emt 0:00:00]} Rc6 {[%emt 0:00:30]} 32. Re5 {[%emt 0:00:00]} Kf6 {[%emt 0:00:00]} 33. Re1 {[%emt 0:00:00]} Rc4 {[%emt 0:00:00]} 34. Ke3 {[%emt 0:00:00]} Kg5 {[%emt 0:00:00]} 35. Rf1 {[%emt 0:00:00]} Kg4 {[%emt 0:00:00]} 36. Rf2 {[%emt 0:00:00]} h5 {[%emt 0:00:07]} 37. Rf1 {[%emt 0:02:19]} a6 {[%emt 0:01:31]} 38. Rf2 {[%emt 0:00:18]} b5 {[%emt 0:00:51][%cal Bb6b5,Bb5b4][%mdl 32]} 39. Rf1 {[%emt 0:00:02]} (39. Rf3 $17 {keeps fighting.}) 39... a5 {[%emt 0:01:31]} (39... b4 $19 {and Black stays clearly on top.} 40. axb4 h4 (40... Rxb4 41. Nd1 $17)) 40. Rf2 {[%emt 0:01:28]} b4 {[%emt 0:00:00]} 41. Ne2 {[%emt 0:30:34]} (41. axb4 $17 Rxb4 (41... axb4 42. Nd1 $17) 42. Rd2) 41... Re4+ {[%emt 0:05:16]} 42. Kd2 {[%emt 0:00:00]} Bc4 {[%emt 0:09:08]} 43. Rf4+ {[%emt 0:02:19] [#]} Rxf4 $1 {[%emt 0:17:36]} 44. Nxf4 {[%emt 0:00:00]} bxa3 {[%emt 0:00:00]} 45. bxa3 $19 {[%emt 0:00:00] KB-KN} h4 {[%emt 0:00:00]} 46. Ng2 $2 {[%emt 0:00:00]} (46. Ke3 $19) 46... hxg3 {[%emt 0:00:00] Black mates.} 47. Ne3+ {[%emt 0:00:00]} Kf3 {[%emt 0:00:00]} 48. hxg3 {[%emt 0:00:00]} Be6 {[%emt 0:00:00]} 49. Nc2 {[%emt 0:00:00]} Kxg3 {[%emt 0:00:00]} 50. Ke1 {[%emt 0:00:00]} f4 {[%emt 0:00:00]} 51. Kf1 {[%emt 0:00:00]} Bc4+ {[%emt 0:00:00]} 52. Kg1 {[%emt 0:00:00]} f3 {[%emt 0:00:00]} 53. Ne3 {[%emt 0:00:00]} f2+ {[%emt 0:00:00]} 54. Kh1 {[%emt 0:00:00] [#]} Bd5+ $1 {[%emt 0:00:00][%mdl 512]} 55. Nxd5 {[%emt 0:00:00]} (55. Ng2 f1=Q#) 55... f1=Q# {[%emt 0:00:00] Weighted Error Value: White=0.25 (precise) /Black=0.08 (flawless) .  Mistake:       	White=4     	Black=1      Inaccurate:     	White=6     	Black=4      OK:         	White=11    	Black=18     Best:        	White=4     	Black=4      Strong:       	White=1     	---} 0-1

[Event "Bangabandhu Premier Div League 2023-24"]
[Site "Dhaka"]
[Date "2024.02.06"]
[Round "6.10"]
[White "Mohammed Abdul, Malek"]
[Black "Mehdi Hasan Parag"]
[Result "0-1"]
[ECO "A06"]
[WhiteElo "2047"]
[BlackElo "2171"]
[Annotator "RC"]
[PlyCount "128"]
[EventDate "2024.02.01"]
[EventCountry "BAN"]
[SourceTitle "playchess.com"]
[Source "ChessBase"]
[SourceQuality "1"]
[TimeControl "40/5400+30:1800+30"]

1. d4 {[%emt 0:00:04]} d5 {[%emt 1:31:00]} 2. c4 {[%emt 0:00:03]} c6 {[%emt 0:00:00]} 3. e3 {[%emt 0:00:02]} Nf6 {[%emt 0:00:00]} 4. Nf3 {[%emt 0:00:01]} e6 {[%emt 0:00:00]} 5. b3 {[%emt 0:00:38]} Nbd7 {[%emt 0:00:00]} 6. Bd3 {[%emt 0:00:06]} Bd6 {[%emt 0:00:00]} 7. Bb2 {[%emt 0:00:06]} O-O {[%emt 0:00:00]} 8. Nbd2 {[%emt 0:00:35]} Qe7 {[%emt 0:00:00]} 9. Ne5 {[%emt 0:06:24]} Bb4 {[%emt 0:00:00]} 10. O-O {[%emt 0:00:27]} h6 {[%emt 0:00:00]} 11. a3 {[%emt 0:00:46]} Bxd2 {[%emt 0:00:00]} 12. Qxd2 {[%emt 0:00:10]} dxc4 {[%emt 0:00:00]} 13. bxc4 {[%emt 0:01:26]} Nxe5 {[%emt 0:00:00]} 14. dxe5 {[%emt 0:00:10]} Nd7 {[%emt 0:00:00]} 15. Bc2 {[%emt 0:02:29]} b6 {[%emt 0:00:00]} 16. Qd3 {[%emt 0:07:55]} g6 {[%emt 0:00:00]} 17. Qe4 {[%emt 0:00:47]} Nc5 {[%emt 0:08:00]} 18. Qf4 {[%emt 1:17:21]} Qg5 {[%emt 0:00:00]} 19. Qd4 {[%emt 0:00:00]} Rd8 {[%emt 0:00:00]} 20. Qc3 {[%emt 0:00:00]} Qe7 {[%emt 0:00:00]} 21. f4 {[%emt 0:00:00]} Kh7 {[%emt 0:00:00]} 22. e4 {[%emt 0:02:00]} Ba6 {[%emt 0:02:30]} 23. a4 {[%emt 0:00:00]} Rd7 {[%emt 0:00:00]} 24. Rf3 {[%emt 0:00:00]} Rad8 {[%emt 0:00:00]} 25. Raf1 {[%emt 0:01:30]} Nxa4 {[%emt 0:00:00]} 26. Bxa4 {[%emt 0:00:00]} Qc5+ {[%emt 0:02:00]} 27. Qe3 {[%emt 0:00:00]} Qxe3+ {[%emt 0:00:00]} 28. Rxe3 {[%emt 0:00:00]} Bxc4 {[%emt 0:00:00]} 29. Rc1 {[%emt 0:00:00]} b5 {[%emt 0:01:30]} 30. Bc2 {[%emt 0:02:30]} a5 {[%emt 0:00:30]} 31. Bc3 {[%emt 0:00:00]} b4 {[%emt 0:00:00]} 32. Be1 {[%emt 0:00:00]} Bb5 {[%emt 0:00:00]} 33. Ra1 {[%emt 0:01:30]} Bd3 {[%emt 0:00:00]} 34. Ba4 {[%emt 0:00:30]} Rd4 {[%emt 0:02:00]} 35. Bxc6 {[%emt 0:00:30]} b3 {[%emt 0:00:30]} 36. Bxa5 {[%emt 0:00:00]} b2 {[%emt 0:00:00]} 37. Rae1 {[%emt 0:01:00]} Rc4 {[%emt 0:00:00]} 38. Bxd8 {[%emt 0:00:00]} Rc1 {[%emt 0:00:00]} 39. Kf2 {[%emt 0:00:00]} b1=Q {[%emt 0:00:00]} 40. Rxc1 {[%emt 0:00:03]} Qxc1 {[%emt 0:00:00]} 41. Rxd3 {[%emt 0:30:02]} Qxc6 {[%emt 0:13:48]} 42. Kf3 {[%emt 0:01:09]} Qb5 {[%emt 0:00:46]} 43. Rd2 {[%emt 0:00:00]} g5 {[%emt 0:00:00]} 44. g3 {[%emt 0:00:00]} Qf1+ {[%emt 0:00:00]} 45. Ke3 {[%emt 0:00:00]} Qe1+ {[%emt 0:00:00]} 46. Kd3 {[%emt 0:00:00]} Kg6 {[%emt 0:00:00]} 47. Bf6 {[%emt 0:00:00]} Kh5 {[%emt 0:21:26]} 48. fxg5 {[%emt 0:00:00]} hxg5 {[%emt 0:00:00]} 49. Re2 {[%emt 0:00:00]} Qd1+ {[%emt 0:00:00]} 50. Ke3 {[%emt 0:00:00]} Kg4 {[%emt 0:00:00]} 51. Rf2 {[%emt 0:00:00]} Qe1+ {[%emt 0:00:00]} 52. Re2 {[%emt 0:00:00]} Qc1+ {[%emt 0:00:00]} 53. Kf2 {[%emt 0:00:00]} Kh3 {[%emt 0:00:00]} 54. Re1 {[%emt 0:00:00]} Qc5+ {[%emt 0:00:00]} 55. Kf3 {[%emt 0:00:00]} g4+ {[%emt 0:00:00]} 56. Ke2 {[%emt 0:00:00]} Qc2+ {[%emt 0:00:00]} 57. Ke3 {[%emt 0:00:00]} Qc3+ {[%emt 0:00:00]} 58. Ke2 {[%emt 0:00:00]} Kxh2 {[%emt 0:00:00]} 59. Bh4 {[%emt 0:00:00]} Kg2 {[%emt 0:00:00]} 60. Bg5 {[%emt 0:00:00]} Qxe5 {[%emt 0:00:00]} 61. Be3 {[%emt 0:00:21]} Qb5+ {[%emt 0:00:00]} 62. Kd2 {[%emt 0:00:05]} Kxg3 {[%emt 0:00:00]} 63. Bd4 {[%emt 0:00:19]} e5 {[%emt 0:00:00]} 64. Bc3 {[%emt 0:00:23]} Kf2 {[%emt 0:00:00]} 0-1

[Event "Bangabandhu Premier Div League 2023-24"]
[Site "Dhaka"]
[Date "2024.02.06"]
[Round "6.11"]
[White "Mohammad Nubairshah Shaikh"]
[Black "Harikrishnan.A.Ra"]
[Result "1/2-1/2"]
[ECO "D11"]
[WhiteElo "2428"]
[BlackElo "2454"]
[Annotator "RC"]
[PlyCount "144"]
[EventDate "2024.02.01"]
[EventCountry "BAN"]
[SourceTitle "playchess.com"]
[Source "ChessBase"]
[SourceQuality "1"]
[TimeControl "40/5400+30:1800+30"]

1. Nf3 {[%emt 0:09:46]} d5 {[%emt 0:00:58]} 2. d4 {[%emt 0:00:06]} Nf6 {[%emt 0:00:13]} 3. c4 {[%emt 0:00:10]} c6 {[%emt 0:00:08]} 4. g3 {[%emt 0:00:08]} Bf5 {[%emt 0:00:29]} 5. Nc3 {[%emt 0:00:05]} e6 {[%emt 0:00:17]} 6. Nh4 {[%emt 0:00:05]} Be4 {[%emt 0:01:54]} 7. f3 {[%emt 0:00:47]} Bg6 {[%emt 0:00:05]} 8. Qb3 {[%emt 0:12:40]} Qb6 {[%emt 0:00:42]} 9. Nxg6 {[%emt 0:00:10]} hxg6 {[%emt 0:00:36]} 10. Be3 {[%emt 0:11:13]} dxc4 {[%emt 0:13:06]} 11. Qxc4 {[%emt 0:01:04]} Bd6 {[%emt 0:06:53]} 12. Bf2 {[%emt 0:15:52]} Qxb2 {[%emt 0:03:06]} 13. Rb1 {[%emt 0:00:01]} Qc2 {[%emt 0:01:29]} 14. e4 {[%emt 0:00:17]} b5 {[%emt 0:01:08]} 15. Qd3 {[%emt 0:00:36]} Qxd3 {[%emt 0:00:16]} 16. Bxd3 {[%emt 0:00:01]} e5 {[%emt 0:03:20]} 17. f4 {[%emt 0:09:50]} exf4 {[%emt 0:04:54]} 18. e5 {[%emt 0:02:22]} fxg3 {[%emt 0:00:25]} 19. Bxg3 {[%emt 0:00:28]} Bc7 {[%emt 0:07:57]} 20. O-O {[%emt 0:13:04]} Nh5 {[%emt 0:28:33]} 21. Nxb5 {[%emt 0:11:47]} cxb5 {[%emt 0:01:10]} 22. Bxb5+ {[%emt 0:10:58]} Ke7 {[%emt 0:13:17]} 23. Bh4+ {[%emt 0:00:00]} f6 {[%emt 0:00:18]} 24. Rbe1 {[%emt 0:00:00]} Kd8 {[%emt 0:03:52]} 25. exf6 {[%emt 0:00:00]} gxf6 {[%emt 0:01:50]} 26. Rxf6 {[%emt 0:00:00]} Bxh2+ {[%emt 0:03:31]} 27. Kg2 {[%emt 0:00:00]} Nxf6 {[%emt 0:00:15]} 28. Bxf6+ {[%emt 0:00:00]} Kc7 {[%emt 0:00:08]} 29. Bxh8 {[%emt 0:00:00]} Nd7 {[%emt 0:01:03]} 30. Bg7 {[%emt 0:02:16]} Bd6 {[%emt 0:00:41]} 31. Rc1+ {[%emt 0:00:47]} Kd8 {[%emt 0:00:06]} 32. Bh6 {[%emt 0:00:05]} Rb8 {[%emt 0:02:51]} 33. a4 {[%emt 0:00:31]} Rb6 {[%emt 0:00:44]} 34. Re1 {[%emt 0:01:42]} Be7 {[%emt 0:00:23]} 35. Bd2 {[%emt 0:00:30]} a6 {[%emt 0:00:29]} 36. Ba5 {[%emt 0:00:33]} axb5 {[%emt 0:00:18]} 37. axb5 {[%emt 0:00:08]} Bb4 {[%emt 0:01:01]} 38. Bxb6+ {[%emt 0:00:53]} Nxb6 {[%emt 0:00:01]} 39. Re6 {[%emt 0:00:02]} Nd5 {[%emt 0:00:20]} 40. Kf3 {[%emt 0:00:20]} g5 {[%emt 0:01:09]} 41. Re5 {[%emt 0:30:29]} Nc3 {[%emt 0:02:29]} 42. Rxg5 {[%emt 0:00:00]} Kc7 {[%emt 0:00:33]} 43. Ke3 {[%emt 0:00:00]} Kb6 {[%emt 0:00:24]} 44. Kd3 {[%emt 0:00:00]} Nxb5 {[%emt 0:00:10]} 45. Kc4 {[%emt 0:00:00]} Nxd4 {[%emt 0:00:07]} 46. Kxb4 {[%emt 0:00:00]} Kc6 {[%emt 0:00:20]} 47. Kc4 {[%emt 0:00:00]} Ne6 {[%emt 0:00:06]} 48. Rd5 {[%emt 0:00:00]} Nc7 {[%emt 0:00:07]} 49. Ra5 {[%emt 0:00:00]} Kd6 {[%emt 0:00:06]} 50. Ra1 {[%emt 0:00:00]} Ne6 {[%emt 0:31:12]} 51. Ra7 {[%emt 0:00:00]} Nc7 {[%emt 0:00:00]} 52. Ra5 {[%emt 0:00:00]} Ne6 {[%emt 0:00:00]} 53. Rf5 {[%emt 0:07:14]} Nc7 {[%emt 0:00:00]} 54. Kd3 {[%emt 0:00:00]} Ne6 {[%emt 0:00:00]} 55. Ke3 {[%emt 0:00:00]} Nc5 {[%emt 0:00:00]} 56. Rh5 {[%emt 0:00:00]} Ne6 {[%emt 0:00:00]} 57. Ke4 {[%emt 0:00:00]} Nc5+ {[%emt 0:00:00]} 58. Kf5 {[%emt 0:00:00]} Kd5 {[%emt 0:00:00]} 59. Rh1 {[%emt 0:00:00]} Nd3 {[%emt 0:00:00]} 60. Rh8 {[%emt 0:00:00]} Kd4 {[%emt 0:00:00]} 61. Re8 {[%emt 0:00:00]} Nc5 {[%emt 0:00:00]} 62. Rd8+ {[%emt 0:00:00]} Ke3 {[%emt 0:00:00]} 63. Ke5 {[%emt 0:00:00]} Nd3+ {[%emt 0:00:00]} 64. Kd5 {[%emt 0:00:00]} Nf4+ {[%emt 0:00:00]} 65. Kc4 {[%emt 0:00:00]} Ke4 {[%emt 0:00:00]} 66. Re8+ {[%emt 0:00:00]} Kf5 {[%emt 0:00:00]} 67. Kc5 {[%emt 0:00:00]} Ne6+ {[%emt 0:00:00]} 68. Kd6 {[%emt 0:00:00]} Nf4 {[%emt 0:00:00]} 69. Re3 {[%emt 0:00:00]} Kf6 {[%emt 0:00:00]} 70. Re5 {[%emt 0:00:00]} Ng6 {[%emt 0:00:00]} 71. Ra5 {[%emt 0:00:00]} Nf4 {[%emt 0:00:00]} 72. Kd7 {[%emt 0:00:00]} Ng6 {[%emt 0:00:00]} 1/2-1/2

[Event "Bangabandhu Premier Div League 2023-24"]
[Site "Dhaka"]
[Date "2024.02.06"]
[Round "6.12"]
[White "Asif, Mahmud"]
[Black "Subrota, Biswas"]
[Result "0-1"]
[ECO "A58"]
[WhiteElo "1906"]
[BlackElo "2223"]
[Annotator "RC"]
[PlyCount "190"]
[EventDate "2024.02.01"]
[EventCountry "BAN"]
[SourceTitle "playchess.com"]
[Source "ChessBase"]
[SourceQuality "1"]
[TimeControl "40/5400+30:1800+30"]

1. d4 {[%emt 0:00:04]} Nf6 {[%emt 0:00:18]} 2. Nf3 {[%emt 0:00:24]} g6 {[%emt 0:00:06]} 3. c4 {[%emt 0:00:29]} Bg7 {[%emt 0:00:03]} 4. g3 {[%emt 0:03:32]} O-O {[%emt 0:00:05]} 5. Bg2 {[%emt 0:00:06]} c5 {[%emt 0:00:12]} 6. d5 {[%emt 0:02:39]} d6 {[%emt 0:00:03]} 7. O-O {[%emt 0:02:10]} b5 {[%emt 0:00:12]} 8. cxb5 {[%emt 0:01:06]} a6 {[%emt 0:03:07]} 9. Nc3 {[%emt 0:04:41]} axb5 {[%emt 0:01:18]} 10. Nxb5 {[%emt 0:00:23]} Ba6 {[%emt 0:00:54]} 11. Nc3 {[%emt 0:04:17]} Nbd7 {[%emt 0:03:34]} 12. Re1 {[%emt 0:06:15]} Qb6 {[%emt 0:03:31]} 13. h3 {[%emt 0:08:20]} Rfb8 {[%emt 0:03:05]} 14. e4 {[%emt 0:06:38]} Ne8 {[%emt 0:01:10]} 15. a4 {[%emt 0:15:01]} Nc7 {[%emt 0:04:27]} 16. Ra3 {[%emt 0:12:42]} Bc4 {[%emt 0:09:04]} 17. Nd2 {[%emt 0:04:05]} Bd3 {[%emt 1:07:51]} 18. Bf1 {[%emt 0:06:32]} Bxf1 {[%emt 0:00:00]} 19. Kxf1 {[%emt 0:00:49]} Ne5 {[%emt 0:00:00]} 20. Qe2 {[%emt 0:20:17]} Qa6 {[%emt 0:00:00]} 21. Nb5 {[%emt 0:00:00]} Nxb5 {[%emt 0:00:00]} 22. axb5 {[%emt 0:00:00]} Qc8 {[%emt 0:00:00]} 23. Kg2 {[%emt 0:00:00]} c4 {[%emt 0:00:00]} 24. Rxa8 {[%emt 0:00:00]} Rxa8 {[%emt 0:00:00]} 25. Nf3 {[%emt 0:00:00]} Nd3 {[%emt 0:00:00]} 26. Rd1 {[%emt 0:00:00]} Qb7 {[%emt 0:00:00]} 27. Ne1 {[%emt 0:00:00]} Nxe1+ {[%emt 0:00:00]} 28. Rxe1 {[%emt 0:04:00]} Qxb5 {[%emt 0:00:00]} 29. Bg5 {[%emt 0:00:00]} e6 {[%emt 0:00:00]} 30. dxe6 {[%emt 0:00:00]} Qxg5 {[%emt 0:00:00]} 31. exf7+ {[%emt 0:00:00]} Kf8 {[%emt 0:00:00]} 32. Qxc4 {[%emt 0:00:00]} Qc5 {[%emt 0:00:00]} 33. Qe6 {[%emt 0:00:00]} Bxb2 {[%emt 0:00:00]} 34. Rb1 {[%emt 0:00:00]} Qe5 {[%emt 0:00:00]} 35. Qxe5 {[%emt 0:00:00]} Bxe5 {[%emt 0:00:00]} 36. f4 {[%emt 0:00:00]} Ra2+ {[%emt 0:00:00]} 37. Kf3 {[%emt 0:00:13]} Ra3+ {[%emt 0:00:00]} 38. Kg2 {[%emt 0:00:41]} Bf6 {[%emt 0:00:00]} 39. Rb7 {[%emt 0:01:08]} Be7 {[%emt 0:00:00]} 40. h4 {[%emt 0:00:19]} Kxf7 {[%emt 0:00:00]} 41. h5 {[%emt 0:30:53]} gxh5 {[%emt 0:00:00]} 42. e5 {[%emt 0:00:39]} dxe5 {[%emt 0:00:59]} 43. fxe5 {[%emt 0:00:46]} Ra5 {[%emt 0:00:03]} 44. e6+ {[%emt 0:01:41]} Kxe6 {[%emt 0:01:50]} 45. Rb6+ {[%emt 0:00:00]} Kf7 {[%emt 0:00:00]} 46. Rh6 {[%emt 0:00:00]} Kg7 {[%emt 0:00:00]} 47. Re6 {[%emt 0:00:00]} Ra2+ {[%emt 0:42:08]} 48. Kh3 {[%emt 0:00:00]} Bf6 {[%emt 0:00:00]} 49. Re3 {[%emt 0:00:00]} Bg5 {[%emt 0:00:00]} 50. Rb3 {[%emt 0:00:00]} Ra4 {[%emt 0:00:00]} 51. Rf3 {[%emt 0:00:00]} Kg6 {[%emt 0:00:00]} 52. Rb3 {[%emt 0:00:00]} h6 {[%emt 0:02:30]} 53. Rf3 {[%emt 0:00:00]} Bf6 {[%emt 0:00:00]} 54. Rb3 {[%emt 0:00:00]} Rc4 {[%emt 0:00:00]} 55. Rf3 {[%emt 0:00:00]} Be5 {[%emt 0:00:00]} 56. Rb3 {[%emt 0:00:00]} Kf5 {[%emt 0:00:00]} 57. Rf3+ {[%emt 0:00:00]} Kg5 {[%emt 0:00:00]} 58. Re3 {[%emt 0:00:00]} Bc7 {[%emt 0:00:00]} 59. Rf3 {[%emt 0:00:00]} Rc2 {[%emt 0:00:00]} 60. Rb3 {[%emt 0:00:00]} Re2 {[%emt 0:00:00]} 61. Rd3 {[%emt 0:05:03]} Be5 {[%emt 0:00:00]} 62. Rd8 {[%emt 0:01:00]} Kg6 {[%emt 0:00:00]} 63. Rd3 {[%emt 0:02:03]} Rf2 {[%emt 0:00:00]} 64. Ra3 {[%emt 0:02:04]} Rd2 {[%emt 0:00:00]} 65. Re3 {[%emt 0:00:34]} Kf5 {[%emt 0:00:00]} 66. Rf3+ {[%emt 0:00:25]} Ke6 {[%emt 0:00:00]} 67. Ra3 {[%emt 0:00:24]} Rf2 {[%emt 0:00:00]} 68. Ra8 {[%emt 0:00:46]} Rd2 {[%emt 0:00:00]} 69. Ra3 {[%emt 0:00:15]} Kf6 {[%emt 0:00:00]} 70. Ra6+ {[%emt 0:01:02]} Kg5 {[%emt 0:00:00]} 71. Ra8 {[%emt 0:00:34]} Rd4 {[%emt 0:00:00]} 72. Rg8+ {[%emt 0:00:38]} Kf5 {[%emt 0:00:00]} 73. Rf8+ {[%emt 0:00:18]} Bf6 {[%emt 0:00:00]} 74. Ra8 {[%emt 0:00:14]} Re4 {[%emt 0:00:00]} 75. Ra5+ {[%emt 0:00:26]} Kg6 {[%emt 0:00:00]} 76. Ra6 {[%emt 0:00:14]} h4 {[%emt 0:00:00]} 77. gxh4 {[%emt 0:00:52]} h5 {[%emt 0:00:00]} 78. Ra3 {[%emt 0:00:30]} Rxh4+ {[%emt 0:00:00]} 79. Kg3 {[%emt 0:00:32]} Rg4+ {[%emt 0:00:00]} 80. Kh3 {[%emt 0:00:15]} Kf5 {[%emt 0:00:00]} 81. Rf3+ {[%emt 0:00:17]} Kg5 {[%emt 0:00:00]} 82. Rf1 {[%emt 0:00:32]} Rh4+ {[%emt 0:00:00]} 83. Kg2 {[%emt 0:00:35]} Ra4 {[%emt 0:00:00]} 84. Rf3 {[%emt 0:00:30]} Be5 {[%emt 0:00:00]} 85. Rf8 {[%emt 0:00:30]} Ra2+ {[%emt 0:00:00]} 86. Rf2 {[%emt 0:00:03]} Ra7 {[%emt 0:00:00]} 87. Re2 {[%emt 0:00:22]} Bf4 {[%emt 0:00:00]} 88. Rb2 {[%emt 0:01:36]} Kg4 {[%emt 0:00:00]} 89. Rf2 {[%emt 0:00:46]} h4 {[%emt 0:00:00]} 90. Rf1 {[%emt 0:00:18]} Ra2+ {[%emt 0:00:00]} 91. Kh1 {[%emt 0:00:42]} Kh3 {[%emt 0:00:00]} 92. Rf3+ {[%emt 0:00:31]} Bg3 {[%emt 0:00:00]} 93. Rf1 {[%emt 0:00:08]} Rb2 {[%emt 0:00:00]} 94. Kg1 {[%emt 0:00:31]} Rg2+ {[%emt 0:00:00]} 95. Kh1 {[%emt 0:00:10]} Bf2 {[%emt 0:00:00]} 0-1